bitfinex/quotes_ETHUSD_20250908
["timestamp","ask_amount","ask_price","bid_price","bid_amount"]
[1757321056663,3.896,4306.1,4305.9,3.95281573]
[1757321057063,3.896,4306.1,4305.9,1.31506583]
[1757321057990,3.896,4306.1,4305.9,2.01266643]
[1757321058154,3.896,4306.1,4305.9,4.33505605]
[1757321058355,3.896,4306.1,4305.9,4.76645605]
[1757321058679,3.896,4306.1,4305.9,4.33505605]
[1757321058881,3.896,4306.1,4305.9,2.01266643]
[1757321059581,3.896,4306.1,4305.9,1.1230006]
[1757321062258,3.897,4306.1,4305.9,1.1230006]
[1757321063068,0.2941,4306.0,4305.9,0.8136006]
[1757321063263,3.897,4306.1,4305.9,0.8136006]
[1757321063998,1.2367,4306.0,4305.9,0.8136006]
[1757321064867,0.2934,4306.0,4305.9,0.8136006]
[1757321065289,0.7914,4306.0,4305.9,0.8136006]
[1757321065478,1.2367,4306.0,4305.9,0.8136006]
[1757321065695,3.897,4306.1,4305.9,1.1049006]
[1757321066086,3.897,4306.1,4305.9,3.42729104]
[1757321066512,3.897,4306.1,4305.9,1.1049006]
[1757321067025,3.897,4306.1,4305.9,0.8136006]
[1757321067711,3.897,4306.1,4305.8,0.002]
[1757321067712,1.2367,4306.0,4305.8,0.002]
[1757321068090,0.7387,4306.0,4305.8,0.002]
[1757321068297,0.498,4305.9,4305.8,0.002]
[1757321068594,0.9433,4305.9,4305.8,0.002]
[1757321068908,1.2367,4305.9,4305.8,0.002]
[1757321072414,1.76167,4305.9,4305.8,0.002]
[1757321073392,1.2359,4305.9,4305.8,0.002]
[1757321074307,0.2934,4305.9,4305.8,0.002]
[1757321075608,0.7387,4305.9,4305.8,0.002]
[1757321076002,0.2934,4305.9,4305.8,0.002]
[1757321077011,3.897,4306.1,4305.8,0.002]
[1757321077512,0.2934,4305.9,4305.8,0.002]
[1757321077812,0.7387,4305.9,4305.8,0.002]
[1757321078179,1.2367,4305.9,4305.8,0.002]
[1757321083433,5.10829995,4305.9,4305.8,0.002]
[1757321083633,5.32591245,4305.9,4305.8,0.002]
[1757321085826,9.20991245,4305.9,4305.8,0.002]
[1757321090534,5.4332051,4305.9,4305.8,0.002]
[1757321090716,3.884,4305.9,4305.8,0.002]
[1757321090920,3.884,4305.9,4305.8,0.7619]
[1757321091521,3.884,4305.9,4305.8,0.2933]
[1757321094549,3.884,4305.9,4305.8,2.61574879]
[1757321094850,0.116,4306.0,4305.8,2.61574879]
[1757321095053,0.001,4306.1,4306.0,2.32234091]
[1757321095282,3.885,4306.1,4306.0,2.32234091]
[1757321095459,3.885,4306.1,4306.0,3.51594091]
[1757321095861,3.885,4306.1,4306.0,3.03814091]
[1757321096052,3.885,4306.1,4306.0,2.60924091]
[1757321096662,3.885,4306.1,4306.0,3.03814091]
[1757321096864,3.885,4306.1,4306.0,0.2869]
[1757321097946,3.885,4306.1,4305.8,0.21960211]
[1757321098444,3.885,4306.1,4306.0,2.32234091]
[1757321098645,3.8842,4306.1,4306.0,2.32234091]
[1757321098845,3.8842,4306.1,4306.0,2.60924091]
[1757321099045,3.8842,4306.1,4306.0,0.2869]
[1757321099245,3.8842,4306.1,4305.8,2.54203123]
[1757321099568,3.8842,4306.1,4305.9,2.32238095]
[1757321099873,3.8842,4306.1,4306.0,2.32234091]
[1757321100074,3.8842,4306.1,4306.0,0.2869]
[1757321100378,3.8842,4306.1,4305.8,2.54202096]
[1757321100577,3.8842,4306.1,4305.8,0.21960211]
[1757321100745,3.8842,4306.1,4305.9,2.32238974]
[1757321100949,4.7816,4306.1,4305.8,0.002]
[1757321101406,3.8842,4306.1,4305.8,0.002]
[1757321101577,0.8974,4306.0,4305.8,2.32443081]
[1757321101774,0.466,4306.0,4305.8,0.002]
[1757321101974,0.8974,4306.0,4305.8,0.002]
[1757321102276,3.8842,4306.1,4305.8,2.32443557]
[1757321102668,3.8842,4306.1,4305.9,2.32238842]
[1757321103470,3.8842,4306.1,4305.8,2.32444589]
[1757321103687,0.4314,4306.0,4305.8,0.002]
[1757321104083,0.2975,4305.9,4305.8,0.002]
[1757321104297,0.7289,4305.9,4305.8,0.002]
[1757321104460,1.1949,4305.9,4305.8,2.32444879]
[1757321104778,3.8842,4306.1,4305.8,2.32444879]
[1757321105209,3.8842,4306.1,4306.0,0.2869]
[1757321105210,0.0002,4306.1,4306.0,0.2869]
[1757321105508,3.8842,4306.1,4306.0,2.60924091]
[1757321107110,0.0002,4306.1,4306.0,13.97989737]
[1757321107418,0.0002,4306.1,4306.0,33.06236822]
[1757321107572,0.0002,4306.1,4306.0,34.47555756]
[1757321108211,0.0002,4306.1,4306.0,23.2426011]
[1757321108390,0.0002,4306.1,4306.0,22.3359011]
[1757321109010,0.0002,4306.1,4306.0,7.8359011]
[1757321109199,0.0002,4306.1,4306.0,8.2648011]
[1757321109581,0.0002,4306.1,4306.0,8.7426011]
[1757321109780,0.0002,4306.1,4306.0,8.2648011]
[1757321109982,0.0002,4306.1,4306.0,4.5490011]
[1757321109983,0.2977,4306.1,4306.0,4.5490011]
[1757321110180,1.1951,4306.1,4306.0,0.81347085]
[1757321110513,1.1951,4306.1,4306.0,0.69747085]
[1757321110712,1.1951,4306.1,4305.8,0.002]
[1757321111484,2.32234091,4306.0,4305.8,0.002]
[1757321111685,1.1951,4306.1,4305.8,0.002]
[1757321111899,1.1949,4305.9,4305.8,0.002]
[1757321112076,5.0829,4305.9,4305.8,0.002]
[1757321113183,0.2975,4305.9,4305.8,0.002]
[1757321113385,3.888,4305.9,4305.8,0.002]
[1757321113585,0.1162,4306.1,4305.8,0.2889]
[1757321113806,3.887,4306.0,4305.8,0.2889]
[1757321114687,3.887,4306.0,4305.8,2.61134589]
[1757321115095,3.887,4306.0,4305.8,0.2889]
[1757321115307,3.887,4306.0,4305.8,0.002]
[1757321116017,0.0002,4306.1,4305.9,0.2869]
[1757321116231,0.0002,4306.1,4306.0,2.75124091]
[1757321116442,0.0002,4306.1,4306.0,3.22904091]
[1757321116591,0.0002,4306.1,4306.0,3.65516431]
[1757321116789,0.0002,4306.1,4306.0,4.96469747]
[1757321117323,0.0002,4306.1,4306.0,7.96469747]
[1757321117735,0.0002,4306.1,4306.0,8.66216995]
[1757321119645,0.0002,4306.1,4306.0,7.75546995]
[1757321119806,0.0002,4306.1,4306.0,7.05799747]
[1757321121042,0.2977,4306.1,4306.0,6.77109747]
[1757321121241,0.0002,4306.1,4306.0,6.77109747]
[1757321121626,0.0002,4306.1,4306.0,7.05799747]
[1757321121827,0.0002,4306.1,4306.0,21.55799747]
[1757321122152,0.792,4306.0,4305.8,0.002]
[1757321122330,1.9869,4305.9,4305.3,0.002]
[1757321122529,3.11466456,4305.4,4305.3,0.002]
[1757321122730,7.22404447,4305.4,4305.3,0.002]
[1757321122931,8.41894447,4305.4,4305.3,0.002]
[1757321123467,5.0869,4305.4,4305.3,0.002]
[1757321123766,7.40956456,4305.4,4305.3,0.002]
[1757321123979,0.7635,4305.4,4305.3,0.002]
[1757321124150,4.1887,4305.4,4305.3,0.002]
[1757321124539,0.2967,4305.4,4305.3,0.002]
[1757321124936,3.892,4305.5,4305.3,0.002]
[1757321125545,3.892,4305.5,4305.4,0.308]
[1757321125768,3.892,4305.5,4305.3,0.002]
[1757321126083,0.9278,4305.4,4305.3,0.002]
[1757321126444,1.221,4305.4,4305.3,0.002]
[1757321127551,0.2932,4305.4,4305.3,0.002]
[1757321128482,1.221,4305.4,4305.3,0.002]
[1757321129254,4.28722121,4305.4,4305.3,0.002]
[1757321130662,5.29631092,4305.4,4305.3,0.002]
[1757321131518,5.07922121,4305.4,4305.3,0.002]
[1757321131849,5.29625601,4305.4,4305.3,0.002]
[1757321132283,5.07922121,4305.4,4305.3,0.002]
[1757321132477,5.2961895,4305.4,4305.3,0.002]
[1757321135530,2.32266456,4305.4,4305.3,0.31]
[1757321135686,2.43866456,4305.4,4305.3,0.31]
[1757321135891,3.892,4305.4,4305.3,0.31]
[1757321137925,3.892,4305.4,4305.3,0.002]
[1757321138124,6.97666456,4305.4,4305.3,0.002]
[1757321138324,7.43566456,4305.4,4305.3,0.002]
[1757321138887,6.50786456,4305.4,4305.3,0.002]
[1757321139387,3.892,4305.4,4305.3,0.002]
[1757321139734,4.1852,4305.4,4305.3,0.002]
[1757321140228,6.50786456,4305.4,4305.3,0.002]
[1757321140458,4.654,4305.4,4305.3,0.002]
[1757321140952,3.892,4305.4,4305.3,0.002]
[1757321141162,3.89,4305.4,4305.3,0.31]
[1757321141364,4.10648795,4306.1,4305.4,2.32266456]
[1757321141365,0.0002,4306.1,4305.4,2.32266456]
[1757321141549,0.0002,4306.1,4305.3,2.90620582]
[1757321141550,3.89,4305.9,4305.3,2.90620582]
[1757321141751,3.89,4305.9,4305.8,0.308]
[1757321142123,0.0002,4306.1,4305.8,0.8895]
[1757321142424,0.0002,4306.1,4306.0,2.32234091]
[1757321142624,3.8912,4306.1,4306.0,2.32234091]
[1757321142852,3.8912,4306.1,4306.0,2.63034091]
[1757321143375,3.8912,4306.1,4306.0,3.09584091]
[1757321144265,3.8912,4306.1,4306.0,0.90690382]
[1757321144559,3.8912,4306.1,4306.0,0.308]
[1757321145862,3.8912,4306.1,4305.8,0.116]
[1757321145863,4.1844,4306.1,4305.8,0.116]
[1757321146443,4.1844,4306.1,4306.0,0.308]
[1757321146444,3.8912,4306.1,4306.0,0.308]
[1757321147262,3.8902,4306.1,4306.0,2.63034091]
[1757321148057,3.8902,4306.1,4306.0,0.308]
[1757321148444,3.8902,4306.1,4305.8,0.116]
[1757321149036,3.8902,4306.1,4305.9,2.32238892]
[1757321149377,0.2932,4306.0,4305.8,0.116]
[1757321149685,0.2924,4306.0,4305.8,0.116]
[1757321151040,0.459,4305.9,4305.3,0.002]
[1757321151241,3.889,4305.8,4305.4,0.116]
[1757321152067,3.889,4305.8,4305.4,2.43866451]
[1757321152260,3.889,4305.8,4305.7,0.308]
[1757321152641,3.893,4305.9,4305.7,3.55069262]
[1757321152839,3.893,4306.0,4305.8,0.35506926]
[1757321153073,0.0002,4306.1,4305.9,0.308]
[1757321153274,0.0002,4306.1,4306.0,2.32234091]
[1757321153643,0.0002,4306.1,4306.0,2.60914091]
[1757321154141,0.0002,4306.1,4306.0,3.08244091]
[1757321154348,0.0002,4306.1,4306.0,2.60914091]
[1757321154842,0.0002,4306.1,4306.0,3.19834954]
[1757321155654,0.0002,4306.1,4306.0,7.15884954]
[1757321157560,0.0002,4306.1,4306.0,7.25184587]
[1757321158598,0.0002,4306.1,4306.0,6.77854587]
[1757321158903,0.0002,4306.1,4306.0,7.25184587]
[1757321159353,0.0002,4306.1,4306.0,21.75184587]
[1757321159557,0.0002,4306.1,4306.0,21.26464587]
[1757321159753,0.0002,4306.1,4306.0,20.79134587]
[1757321160062,0.0002,4306.1,4306.0,24.30354954]
[1757321160675,0.0002,4306.1,4306.0,5.91154954]
[1757321162483,0.0002,4306.1,4306.0,9.80354954]
[1757321162688,0.0002,4306.1,4306.0,10.20634954]
[1757321163293,1.2095,4306.1,4306.0,0.116]
[1757321163458,1.2095,4306.1,4306.0,2.43834091]
[1757321163858,1.2095,4306.1,4306.0,0.116]
[1757321164595,0.4728,4306.1,4306.0,2.43834091]
[1757321164796,0.0002,4306.1,4306.0,2.72514091]
[1757321164961,0.0002,4306.1,4306.0,3.24309643]
[1757321165695,0.0002,4306.1,4306.0,3.52989643]
[1757321166473,0.0002,4306.1,4306.0,3.24309643]
[1757321166675,0.2946,4306.1,4306.0,3.24309643]
[1757321167166,0.7369,4306.1,4306.0,2.43834091]
[1757321168196,1.2095,4306.1,4306.0,2.43834091]
[1757321169673,1.2095,4306.1,4306.0,0.116]
[1757321169892,1.2095,4306.1,4305.8,2.43843201]
[1757321170097,0.9149,4306.0,4305.8,2.43843201]
[1757321170406,1.2093,4305.9,4305.8,0.116]
[1757321171103,1.2093,4305.9,4305.3,3.896]
[1757321171104,1.33025,4305.9,4305.3,3.896]
[1757321171408,0.9149,4305.8,4305.5,0.116]
[1757321171909,0.2944,4305.6,4305.5,0.116]
[1757321172519,1.2093,4305.6,4305.5,0.116]
[1757321173011,1.2093,4305.6,4305.5,2.43861061]
[1757321173672,0.2944,4305.6,4305.5,2.43861061]
[1757321174081,0.4726,4306.0,4305.5,1.56853038]
[1757321174289,0.4726,4306.0,4305.8,2.3223963]
[1757321174481,0.0002,4306.1,4306.0,2.32234091]
[1757321174694,0.0002,4306.1,4305.9,2.43838035]
[1757321174896,0.0002,4306.1,4306.0,2.60914091]
[1757321175104,1.7834,4306.4,4306.3,2.32217913]
[1757321175306,1.7834,4306.4,4306.3,2.60897913]
[1757321175689,0.001,4306.6,4306.5,2.32207128]
[1757321176089,0.001,4306.6,4306.5,2.72487128]
[1757321176654,0.001,4306.6,4306.5,3.19817128]
[1757321177105,0.001,4306.6,4306.5,2.72487128]
[1757321177305,0.001,4306.6,4306.5,5.72487128]
[1757321177483,0.001,4306.6,4306.5,6.67609887]
[1757321178120,0.001,4306.6,4306.5,21.17609887]
[1757321178323,0.001,4306.6,4306.5,21.53339887]
[1757321178529,0.001,4306.6,4306.5,22.13659887]
[1757321178891,0.001,4306.6,4306.5,21.64939887]
[1757321179423,0.001,4306.6,4306.5,21.17609887]
[1757321180468,0.001,4306.6,4306.5,20.88929887]
[1757321180956,0.4736,4306.6,4306.5,9.33207128]
[1757321181253,0.001,4306.6,4306.5,9.33207128]
[1757321181957,0.001,4306.6,4306.5,5.43807128]
[1757321183555,0.4602,4306.6,4306.5,5.43807128]
[1757321183939,0.001,4306.6,4306.5,5.43807128]
[1757321184528,0.001,4306.6,4306.5,10.37969619]
[1757321184732,0.001,4306.6,4306.5,10.97409619]
[1757321185158,0.001,4306.6,4306.5,10.58868387]
[1757321187364,0.001,4306.6,4306.5,25.08868387]
[1757321188297,0.001,4306.6,4306.5,24.99569619]
[1757321189157,0.7498,4306.6,4306.5,21.507]
[1757321189359,0.7498,4306.6,4306.5,23.82907128]
[1757321190046,0.7498,4306.6,4306.5,9.32907128]
[1757321190479,0.7498,4306.6,4306.5,9.33007128]
[1757321191571,0.7498,4306.6,4306.5,0.116]
[1757321191959,3.07181736,4306.6,4306.3,0.002]
[1757321192199,0.30968174,4306.5,4306.3,0.002]
[1757321192358,2.63176165,4306.5,4306.3,0.002]
[1757321192556,0.2896,4306.4,4306.3,0.002]
[1757321192753,3.0709252,4306.4,4306.3,0.002]
[1757321193848,0.7488,4306.4,4306.3,0.002]
[1757321194046,1.47635567,4306.4,4306.3,0.002]
[1757321194293,4.6428,4306.4,4306.3,0.002]
[1757321195511,7.4193252,4306.4,4306.3,0.002]
[1757321197690,5.0972,4306.4,4306.3,0.002]
[1757321200500,5.0964,4306.4,4306.3,0.002]
[1757321200835,7.4185252,4306.4,4306.3,0.002]
[1757321201036,8.42364821,4306.4,4306.3,0.002]
[1757321202542,9.21564821,4306.4,4306.3,0.002]
[1757321202745,9.43278365,4306.4,4306.3,0.002]
[1757321203052,16.90989078,4306.4,4306.3,0.002]
[1757321203336,20.41011298,4306.4,4306.3,0.002]
[1757321204101,20.68608037,4306.4,4306.3,0.002]
[1757321205036,23.13308037,4306.4,4306.3,0.002]
[1757321205233,13.46137495,4305.6,4305.5,0.002]
[1757321205395,19.48779924,4305.6,4305.5,0.002]
[1757321205735,20.69099924,4305.6,4305.5,0.002]
[1757321205914,20.78406157,4305.6,4305.5,0.002]
[1757321206331,13.43724329,4305.6,4305.5,0.002]
[1757321206504,15.01321574,4305.6,4305.5,0.002]
[1757321207531,2.32309622,4304.6,4303.8,0.025]
[1757321207732,11.79509622,4304.6,4303.8,0.025]
[1757321207919,13.34495454,4304.6,4303.8,0.025]
[1757321208111,14.78175437,4304.6,4303.8,0.025]
[1757321208313,14.56509351,4304.6,4303.8,0.025]
[1757321208706,10.67009351,4304.6,4303.8,0.025]
[1757321208913,14.56809351,4304.6,4303.8,0.025]
[1757321212637,9.46689351,4304.6,4303.8,0.025]
[1757321212839,9.46689351,4304.6,4303.9,0.4698]
[1757321212840,8.00709622,4304.6,4303.9,0.4698]
[1757321213039,8.29669622,4304.6,4303.9,0.4698]
[1757321213439,9.08869622,4304.6,4303.9,0.4698]
[1757321214543,10.02209622,4304.6,4303.8,0.025]
[1757321215146,10.25897271,4304.6,4303.8,0.025]
[1757321215461,14.51717182,4304.6,4303.8,0.025]
[1757321215942,14.61025406,4304.6,4303.8,0.025]
[1757321216944,3.11531211,4304.2,4303.8,0.025]
[1757321217131,10.01831211,4304.2,4303.8,0.025]
[1757321217458,11.47572563,4304.2,4303.8,0.025]
[1757321217745,12.85562179,4304.2,4303.8,0.025]
[1757321220014,12.85562179,4304.2,4304.1,0.022]
[1757321221112,8.51582179,4304.2,4304.1,0.022]
[1757321221454,12.35702179,4304.2,4304.1,0.022]
[1757321221742,12.85362179,4304.2,4304.1,0.022]
[1757321225934,12.85282179,4304.2,4304.1,0.022]
[1757321229232,13.06941211,4304.2,4304.1,0.022]
[1757321229636,13.19937264,4304.2,4304.1,0.022]
[1757321229967,6.11585201,4303.2,4303.1,1e-08]
[1757321230170,13.21529775,4303.2,4303.1,1e-08]
[1757321230488,14.79054524,4303.2,4303.1,1e-08]
[1757321231488,15.29024622,4303.2,4303.1,1e-08]
[1757321231638,10.16484622,4303.2,4303.1,1e-08]
[1757321231840,14.06584622,4303.2,4303.1,1e-08]
[1757321232037,13.56614524,4303.2,4303.1,1e-08]
[1757321232238,14.06616094,4303.2,4303.1,1e-08]
[1757321232774,14.36116094,4303.2,4303.1,1e-08]
[1757321233873,15.29456094,4303.2,4303.1,1e-08]
[1757321234438,14.85776094,4303.2,4303.1,1e-08]
[1757321234757,15.29456094,4303.2,4303.1,1e-08]
[1757321234961,15.29501935,4303.2,4303.1,1e-08]
[1757321235346,17.22561935,4303.2,4303.1,1e-08]
[1757321235548,21.12661935,4303.2,4303.1,0.30290001]
[1757321235947,17.22561935,4303.2,4303.1,1e-08]
[1757321236275,21.42061935,4303.2,4303.1,1e-08]
[1757321236472,21.85741935,4303.2,4303.1,1e-08]
[1757321236663,22.35401935,4303.2,4303.1,1e-08]
[1757321237072,21.42061935,4303.2,4303.1,1e-08]
[1757321237478,21.12461935,4303.2,4303.1,0.30290001]
[1757321237864,21.12461935,4303.2,4303.1,1e-08]
[1757321238064,17.52061935,4303.2,4303.1,1e-08]
[1757321238377,21.41961935,4303.2,4303.1,0.00200001]
[1757321238962,22.35301935,4303.2,4303.1,0.00200001]
[1757321239468,3.792,4303.1,4302.8,1e-08]
[1757321239680,6.11601403,4302.9,4302.8,1e-08]
[1757321239862,7.25833563,4302.9,4302.8,1e-08]
[1757321240191,15.25173563,4302.9,4302.8,1e-08]
[1757321240396,6.11623009,4302.5,4302.4,1e-08]
[1757321240546,10.86455169,4302.5,4302.4,1e-08]
[1757321240750,12.27676262,4302.5,4302.4,0.30290001]
[1757321240974,10.36453599,4302.5,4302.4,0.30290001]
[1757321243391,10.36453599,4302.5,4302.4,1e-08]
[1757321243576,10.67943599,4302.5,4302.4,1e-08]
[1757321243777,10.23329628,4302.5,4302.4,0.75770001]
[1757321243982,10.23329628,4302.5,4302.4,0.30010001]
[1757321243983,7.01623009,4302.5,4302.4,0.30010001]
[1757321245102,9.07050865,4302.5,4302.4,1e-08]
[1757321245398,12.54190865,4302.5,4302.4,1e-08]
[1757321246685,11.61250865,4302.5,4302.4,1e-08]
[1757321247086,11.29760865,4302.5,4302.4,1e-08]
[1757321247398,11.61250865,4302.5,4302.4,1e-08]
[1757321247566,12.08390865,4302.5,4302.4,1e-08]
[1757321247970,12.54190865,4302.5,4302.4,1e-08]
[1757321248165,13.042228,4302.5,4302.4,1e-08]
[1757321248366,3.1164462,4302.1,4302.0,0.002]
[1757321248602,12.99386748,4302.1,4302.0,0.002]
[1757321248804,14.89212033,4302.1,4302.0,0.002]
[1757321250123,0.792,4301.5,4301.1,0.02]
[1757321250330,6.11693257,4301.2,4301.1,0.02]
[1757321250608,12.15327542,4301.2,4301.1,0.02]
[1757321250914,13.44593184,4301.2,4301.1,0.3201]
[1757321251319,13.59285803,4301.2,4301.1,0.3201]
[1757321251470,13.46180409,4301.2,4301.1,0.3201]
[1757321252303,13.77570409,4301.2,4301.1,0.02]
[1757321252485,15.05222615,4301.2,4301.1,0.02]
[1757321253408,3.792,4300.9,4300.8,0.025]
[1757321253705,10.50789582,4300.9,4300.8,0.025]
[1757321253877,10.82279582,4300.9,4300.8,0.025]
[1757321254077,11.75219582,4300.9,4300.8,0.025]
[1757321254332,0.792,4300.2,4300.1,0.02]
[1757321254627,8.80647323,4300.2,4300.1,0.02]
[1757321254781,8.80647323,4300.2,4300.1,0.3201]
[1757321254981,2.579,4300.2,4300.1,1.2397]
[1757321255186,1.903,4300.2,4300.1,1.2397]
[1757321255387,5.805,4300.2,4300.1,1.2397]
[1757321255802,5.806,4300.2,4300.1,1.2397]
[1757321256483,8.13147323,4300.2,4300.1,1.2397]
[1757321256892,5.805,4300.2,4300.1,1.2417]
[1757321257109,8.13047323,4300.2,4300.1,1.2417]
[1757321257277,5.805,4300.2,4300.1,1.2417]
[1757321257874,8.13047323,4300.2,4300.1,1.2417]
[1757321258611,5.805,4300.2,4300.1,1.2417]
[1757321259213,1.903,4300.2,4300.1,1.2417]
[1757321259424,5.805,4300.2,4300.1,1.2417]
[1757321259622,1.787,4300.2,4300.1,1.2417]
[1757321259824,5.688,4300.2,4300.1,1.2417]
[1757321260027,8.01347323,4300.2,4300.1,1.2417]
[1757321262507,8.01347323,4300.2,4300.1,0.3221]
[1757321263094,8.01247323,4300.2,4300.1,1.2417]
[1757321263915,8.01247323,4300.2,4300.1,1.36837]
[1757321263916,1.787,4300.2,4300.1,1.36837]
[1757321264119,5.687,4300.2,4300.1,1.36837]
[1757321266138,0.1373179,4300.7,4300.1,1.36837]
[1757321266298,3.899,4300.6,4300.2,0.9196]
[1757321266501,3.899,4300.6,4300.5,0.3001]
[1757321266716,3.899,4300.6,4300.5,0.7621]
[1757321266935,3.899,4300.6,4300.5,1.2197]
[1757321267434,4.0383179,4300.7,4300.5,1.34167]
[1757321267632,4.0383179,4300.7,4300.6,0.9196]
[1757321267795,4.0383179,4300.7,4300.6,1.2197]
[1757321271935,4.0383179,4300.7,4300.6,0.7577]
[1757321272907,4.0363179,4300.7,4300.6,1.2197]
[1757321273145,4.0363179,4300.7,4300.6,1.93838069]
[1757321273443,4.0363179,4300.7,4300.6,7.78351758]
[1757321273617,4.0363179,4300.7,4300.6,8.92809383]
[1757321273813,4.0363179,4300.7,4300.6,9.39789383]
[1757321274019,4.0363179,4300.7,4300.6,7.18863689]
[1757321274529,4.0363179,4300.7,4300.6,0.4062]
[1757321274841,4.0363179,4300.7,4300.6,6.25133689]
[1757321275041,4.0363179,4300.7,4300.6,7.88767896]
[1757321275345,4.0363179,4300.7,4300.6,10.2129359]
[1757321275736,4.0363179,4300.7,4300.6,10.2149359]
[1757321276356,4.0363179,4300.7,4300.6,10.6847359]
[1757321276567,0.1373179,4300.7,4300.6,10.6847359]
[1757321276859,0.1365179,4300.7,4300.6,10.6847359]
[1757321278743,3.669,4301.0,4300.7,2.32520287]
[1757321278928,3.669,4301.0,4300.9,6.13533689]
[1757321279124,3.669,4301.0,4300.9,6.25133689]
[1757321281315,0.57318794,4301.1,4300.9,8.57642558]
[1757321281635,4.46818794,4301.1,4300.9,8.57642172]
[1757321281812,4.46818794,4301.1,4300.9,6.25133689]
[1757321282017,4.46818794,4301.1,4300.9,8.57641574]
[1757321282217,4.46818794,4301.1,4300.9,8.82505574]
[1757321282417,4.46818794,4301.1,4301.0,2.32504068]
[1757321282835,4.46818794,4301.1,4301.0,2.61524068]
[1757321284752,0.001,4301.2,4301.1,2.32498663]
[1757321284936,0.001,4301.2,4301.1,3.25888663]
[1757321285246,0.001,4301.2,4301.1,4.8623287]
[1757321285673,0.001,4301.2,4301.1,7.8623287]
[1757321285855,0.001,4301.2,4301.1,22.3623287]
[1757321286419,0.001,4301.7,4301.6,2.32471638]
[1757321286617,0.001,4301.7,4301.6,8.16985327]
[1757321286817,0.001,4301.7,4301.6,8.92866069]
[1757321287017,0.001,4301.7,4301.6,9.39276069]
[1757321287622,0.001,4301.7,4301.6,9.39846069]
[1757321287824,0.001,4301.7,4301.6,15.70769758]
[1757321288024,0.001,4301.7,4301.6,12.86256069]
[1757321291227,0.001,4301.7,4301.6,33.20769758]
[1757321291430,0.001,4301.7,4301.6,27.36256069]
[1757321292563,0.001,4301.7,4301.6,26.89276069]
[1757321292763,0.001,4301.7,4301.6,30.32266069]
[1757321292927,1.2043,4301.7,4301.3,3.893]
[1757321293262,1.2043,4301.7,4301.1,1.31324207]
[1757321293263,0.9173,4301.6,4301.1,0.141]
[1757321293428,0.9173,4301.6,4301.0,5.84513689]
[1757321293637,0.286,4301.1,4301.0,11.17012885]
[1757321293926,1.2033,4301.1,4301.0,11.17012885]
[1757321294325,1.2033,4301.1,4301.0,5.32499196]
[1757321294746,1.2033,4301.1,4300.8,0.6983541]
[1757321294967,0.286,4301.1,4301.0,0.116]
[1757321295597,1.2033,4301.1,4301.0,2.44104068]
[1757321298793,1.2033,4301.1,4301.0,2.44104068]
[1757321299089,0.286,4301.1,4301.0,2.44104068]
[1757321299248,0.9173,4301.4,4301.1,2.32497864]
[1757321299445,0.9173,4301.3,4301.1,2.32497864]
[1757321299644,0.286,4301.2,4301.1,2.32497864]
[1757321300489,1.2033,4301.2,4301.0,0.116]
[1757321300782,0.4329,4301.1,4300.6,0.002]
[1757321300952,2.75788815,4301.1,4300.6,0.118]
[1757321301147,0.286,4300.7,4300.6,0.118]
[1757321301566,1.2033,4300.7,4300.6,0.118]
[1757321302368,1.2025,4300.7,4300.6,0.118]
[1757321302792,1.2025,4300.7,4300.6,0.002]
[1757321302979,1.88317863,4300.7,4300.6,0.002]
[1757321303511,4.2083815,4300.7,4300.6,0.002]
[1757321303811,1.88317863,4300.7,4300.6,0.002]
[1757321304015,4.2083815,4300.7,4300.6,0.002]
[1757321304497,1.88317863,4300.7,4300.6,0.002]
[1757321304707,4.2083815,4300.7,4300.6,0.002]
[1757321307969,1.88317863,4300.7,4300.6,0.002]
[1757321308392,1.2025,4300.7,4300.6,0.002]
[1757321309177,5.1274,4300.7,4300.6,0.002]
[1757321311108,7.45260287,4300.7,4300.6,0.002]
[1757321312086,5.1274,4300.7,4300.6,0.002]
[1757321313319,0.4588,4301.2,4300.6,0.002]
[1757321313490,0.116,4300.9,4300.6,0.3181]
[1757321313877,0.4648,4300.8,4300.6,0.002]
[1757321314082,4.1981,4300.7,4300.6,0.002]
[1757321314290,5.1217,4300.7,4300.6,0.002]
[1757321314593,4.6569,4300.7,4300.6,0.002]
[1757321314902,5.1217,4300.7,4300.6,0.002]
[1757321315277,7.44690287,4300.7,4300.6,0.002]
[1757321316795,5.1217,4300.7,4300.6,0.002]
[1757321317325,7.44690287,4300.7,4300.6,0.002]
[1757321318125,5.1217,4300.7,4300.6,0.002]
[1757321318326,7.44690287,4300.7,4300.6,0.002]
[1757321318532,8.43570408,4300.7,4300.6,0.002]
[1757321319086,9.22770408,4300.7,4300.6,0.002]
[1757321320011,12.22770408,4300.7,4300.6,0.002]
[1757321321308,12.44497647,4300.7,4300.6,0.002]
[1757321321708,18.42034222,4300.7,4300.6,0.002]
[1757321322327,12.57534051,4300.7,4300.6,0.002]
[1757321322651,13.07611457,4300.7,4300.6,0.002]
[1757321324622,9.18011457,4300.7,4300.6,0.002]
[1757321324829,0.64973643,4300.7,4300.6,0.002]
[1757321325132,4.024,4300.7,4300.6,0.002]
[1757321325342,4.7849,4300.7,4300.6,0.09514163]
[1757321325544,7.57490287,4300.7,4300.6,0.002]
[1757321326112,9.53560456,4300.7,4300.6,0.002]
[1757321327953,9.53480456,4300.7,4300.6,0.002]
[1757321328249,9.75235566,4300.7,4300.6,0.002]
[1757321328646,9.28755566,4300.7,4300.6,0.002]
[1757321328947,7.35895397,4300.7,4300.6,0.3181]